[Event "December 12 Early 2023"]
[Site "https://www.chess.com"]
[Date "2023.12.12"]
[Round "6"]
[White "Krysa, Leandro"]
[Black "Khamdamova, Afruza"]
[Result "0-1"]
[Board "58"]
[TimeControl "180+1"]
[WhiteFideId "116807"]
[BlackFideId "14210444"]
[WhiteElo "2742"]
[BlackElo "2534"]
[WhiteTeam "ARG"]
[BlackTeam "UZB"]
[WhiteClock "0:00:00"]
[BlackClock "0:00:07"]

1. e4 {[%clk 0:03:00]}  e5 {[%clk 0:03:00]} 2. Nf3 {[%clk 0:03:00]}  Nc6 {[%clk 0:03:00]} 3. Bc4 {[%clk 0:03:01]}  Nf6 {[%clk 0:02:59]} 4. d3 {[%clk 0:03:00]}  Bc5 {[%clk 0:02:59]} 5. Nc3 {[%clk 0:03:00]}  d6 {[%clk 0:02:56]} 6. Na4 {[%clk 0:02:59]}  Bb6 {[%clk 0:02:56]} 7. a3 {[%clk 0:02:57]}  h6 {[%clk 0:02:55]} 8. h3 {[%clk 0:02:47]}  Qe7 {[%clk 0:02:53]} 9. O-O {[%clk 0:02:45]}  O-O {[%clk 0:02:53]} 10. b4 {[%clk 0:02:27]}  Be6 {[%clk 0:02:52]} 11. Bxe6 {[%clk 0:02:13]}  Qxe6 {[%clk 0:02:49]} 12. c3 {[%clk 0:02:04]}  Rad8 {[%clk 0:02:46]} 13. Qc2 {[%clk 0:01:57]}  Ne7 {[%clk 0:02:37]} 14. Re1 {[%clk 0:01:49]}  Ng6 {[%clk 0:02:36]} 15. d4 {[%clk 0:01:43]}  c6 {[%clk 0:02:23]} 16. Nxb6 {[%clk 0:01:40]}  axb6 {[%clk 0:02:24]} 17. dxe5 {[%clk 0:01:32]}  dxe5 {[%clk 0:02:19]} 18. Qa2 {[%clk 0:01:27]}  Qxa2 {[%clk 0:02:12]} 19. Rxa2 {[%clk 0:01:27]}  Rd3 {[%clk 0:02:12]} 20. Rc2 {[%clk 0:01:20]}  Rfd8 {[%clk 0:02:11]} 21. a4 {[%clk 0:01:07]}  Rd1 {[%clk 0:01:39]} 22. Re2 {[%clk 0:01:06]}  Rxe1+ {[%clk 0:01:33]} 23. Rxe1 {[%clk 0:01:01]}  Rd3 {[%clk 0:01:33]} 24. Bd2 {[%clk 0:00:53]}  b5 {[%clk 0:01:28]} 25. axb5 {[%clk 0:00:50]}  cxb5 {[%clk 0:01:28]} 26. Kf1 {[%clk 0:00:48]}  Nd7 {[%clk 0:01:25]} 27. Ke2 {[%clk 0:00:46]}  Rd6 {[%clk 0:01:24]} 28. Ra1 {[%clk 0:00:46]}  Nf6 {[%clk 0:01:16]} 29. Ra5 {[%clk 0:00:37]}  Nxe4 {[%clk 0:01:11]} 30. Ra8+ {[%clk 0:00:31]}  Kh7 {[%clk 0:01:11]} 31. g3 {[%clk 0:00:29]}  f6 {[%clk 0:01:04]} 32. Rb8 {[%clk 0:00:29]}  b6 {[%clk 0:01:04]} 33. Rb7 {[%clk 0:00:27]}  Nf8 {[%clk 0:01:01]} 34. Ke3 {[%clk 0:00:24]}  Nxd2 {[%clk 0:00:52]} 35. Nxd2 {[%clk 0:00:25]}  Rc6 {[%clk 0:00:47]} 36. Kd3 {[%clk 0:00:22]}  Ne6 {[%clk 0:00:43]} 37. h4 {[%clk 0:00:20]}  Nc7 {[%clk 0:00:32]} 38. h5 {[%clk 0:00:17]}  Nd5 {[%clk 0:00:32]} 39. Nb1 {[%clk 0:00:16]}  f5 {[%clk 0:00:29]} 40. Rd7 {[%clk 0:00:15]}  Nf6 {[%clk 0:00:24]} 41. Re7 {[%clk 0:00:14]}  e4+ {[%clk 0:00:24]} 42. Kd4 {[%clk 0:00:14]}  Nxh5 {[%clk 0:00:19]} 43. Re5 {[%clk 0:00:11]}  g6 {[%clk 0:00:14]} 44. Rxb5 {[%clk 0:00:11]}  Nf6 {[%clk 0:00:14]} 45. c4 {[%clk 0:00:11]}  h5 {[%clk 0:00:13]} 46. c5 {[%clk 0:00:11]}  bxc5+ {[%clk 0:00:13]} 47. bxc5 {[%clk 0:00:12]}  g5 {[%clk 0:00:13]} 48. Rb6 {[%clk 0:00:11]}  Rxb6 {[%clk 0:00:13]} 49. cxb6 {[%clk 0:00:11]}  h4 {[%clk 0:00:14]} 50. gxh4 {[%clk 0:00:11]}  gxh4 {[%clk 0:00:14]} 51. Nd2 {[%clk 0:00:11]}  h3 {[%clk 0:00:14]} 52. Nf1 {[%clk 0:00:10]}  Nd7 {[%clk 0:00:14]} 53. b7 {[%clk 0:00:09]}  Kg6 {[%clk 0:00:14]} 54. Ke3 {[%clk 0:00:09]}  Kg5 {[%clk 0:00:14]} 55. f3 {[%clk 0:00:10]}  f4+ {[%clk 0:00:11]} 56. Kxe4 {[%clk 0:00:04]}  Nc5+ {[%clk 0:00:11]} 57. Ke5 {[%clk 0:00:04]}  Nxb7 {[%clk 0:00:12]} 58. Nh2 {[%clk 0:00:04]}  Nc5 {[%clk 0:00:12]} 59. Kd4 {[%clk 0:00:04]}  Ne6+ {[%clk 0:00:12]} 60. Ke5 {[%clk 0:00:05]}  Nc5 {[%clk 0:00:12]} 61. Kd4 {[%clk 0:00:05]}  Na4 {[%clk 0:00:08]} 62. Ke5 {[%clk 0:00:05]}  Nc3 {[%clk 0:00:08]} 63. Kd4 {[%clk 0:00:06]}  Nd1 {[%clk 0:00:08]} 64. Ke4 {[%clk 0:00:06]}  Nf2+ {[%clk 0:00:08]} 65. Ke5 {[%clk 0:00:06]}  Nd3+ {[%clk 0:00:07]} 66. Kd4 {[%clk 0:00:06]}  Ne1 {[%clk 0:00:07]} 67. Ke5 {[%clk 0:00:07]}  Ng2 {[%clk 0:00:08]} 68. Ke4 {[%clk 0:00:06]}  Kh4 {[%clk 0:00:08]} 69. Nf1 {[%clk 0:00:06]}  Kg5 {[%clk 0:00:07]} 70. Nh2 {[%clk 0:00:06]}  Kh4 {[%clk 0:00:06]} 71. Nf1 {[%clk 0:00:05]}  Ne3 {[%clk 0:00:07]} 72. Nh2 {[%clk 0:00:00]}  Kg3 {[%clk 0:00:07]} 0-1

[Event "December 12 Early 2023"]
[Site "https://www.chess.com"]
[Date "2023.12.12"]
[Round "6"]
[White "Mindlin, Alon"]
[Black "Rogov, Matfey"]
[Result "1-0"]
[Board "61"]
[TimeControl "180+1"]
[WhiteFideId "2800071"]
[BlackFideId "44191308"]
[WhiteElo "2732"]
[BlackElo "2526"]
[WhiteTeam "ISR"]
[BlackTeam "RUS"]
[WhiteClock "0:01:01"]
[BlackClock "0:00:03"]

1. e4 {[%clk 0:03:00]}  c5 {[%clk 0:02:55]} 2. c3 {[%clk 0:03:00]}  Nf6 {[%clk 0:02:54]} 3. e5 {[%clk 0:03:00]}  Nd5 {[%clk 0:02:54]} 4. d4 {[%clk 0:03:01]}  cxd4 {[%clk 0:02:54]} 5. Nf3 {[%clk 0:03:02]}  Nc6 {[%clk 0:02:54]} 6. Bc4 {[%clk 0:03:02]}  Nb6 {[%clk 0:02:54]} 7. Bb3 {[%clk 0:03:02]}  d6 {[%clk 0:02:54]} 8. exd6 {[%clk 0:03:01]}  Qxd6 {[%clk 0:02:55]} 9. O-O {[%clk 0:03:02]}  Be6 {[%clk 0:02:46]} 10. Na3 {[%clk 0:02:55]}  Bxb3 {[%clk 0:02:42]} 11. axb3 {[%clk 0:02:56]}  a6 {[%clk 0:02:26]} 12. Nxd4 {[%clk 0:02:41]}  Nxd4 {[%clk 0:02:21]} 13. cxd4 {[%clk 0:02:41]}  e6 {[%clk 0:02:21]} 14. Nc4 {[%clk 0:02:40]}  Qd8 {[%clk 0:02:00]} 15. Bg5 {[%clk 0:02:02]}  Qxg5 {[%clk 0:01:51]} 16. Nxb6 {[%clk 0:02:01]}  Rd8 {[%clk 0:01:52]} 17. Qf3 {[%clk 0:02:01]}  Be7 {[%clk 0:01:11]} 18. Qxb7 {[%clk 0:01:59]}  O-O {[%clk 0:01:11]} 19. Qxa6 {[%clk 0:01:55]}  Rxd4 {[%clk 0:01:09]} 20. Nc4 {[%clk 0:01:52]}  Bc5 {[%clk 0:01:05]} 21. Ra5 {[%clk 0:01:46]}  Rf4 {[%clk 0:00:46]} 22. g3 {[%clk 0:01:34]}  Rf3 {[%clk 0:00:26]} 23. Qc6 {[%clk 0:01:30]}  Bxf2+ {[%clk 0:00:07]} 24. Kg2 {[%clk 0:01:26]}  Rxg3+ {[%clk 0:00:06]} 25. Kxf2 {[%clk 0:01:23]}  Qf4+ {[%clk 0:00:04]} 26. Ke2 {[%clk 0:01:23]}  Qg4+ {[%clk 0:00:02]} 27. Ke1 {[%clk 0:01:13]}  Rg2 {[%clk 0:00:02]} 28. Qf3 {[%clk 0:01:13]}  Qh4+ {[%clk 0:00:02]} 29. Rf2 {[%clk 0:01:11]}  Rg1+ {[%clk 0:00:02]} 30. Ke2 {[%clk 0:01:10]}  Qd4 {[%clk 0:00:02]} 31. Rf1 {[%clk 0:01:04]}  Rg4 {[%clk 0:00:03]} 32. Qxf7+ {[%clk 0:01:02]}  Rxf7 {[%clk 0:00:02]} 33. Ra8+ {[%clk 0:01:01]}  Rf8 {[%clk 0:00:03]} 34. Raxf8# {[%clk 0:01:01]} 1-0

[Event "December 12 Early 2023"]
[Site "https://www.chess.com"]
[Date "2023.12.12"]
[Round "6"]
[White "Kosteniuk, Alexandra"]
[Black "Erzhanov, Arman"]
[Result "1-0"]
[Board "63"]
[TimeControl "180+1"]
[WhiteFideId "4128125"]
[BlackFideId "4138821"]
[WhiteElo "2720"]
[BlackElo "2524"]
[WhiteTeam "SUI"]
[BlackTeam "KAZ"]
[WhiteClock "0:02:23"]
[BlackClock "0:01:24"]

1. Nf3 {[%clk 0:03:00]}  d6 {[%clk 0:02:59]} 2. e4 {[%clk 0:02:59]}  Nf6 {[%clk 0:02:58]} 3. Nc3 {[%clk 0:02:59]}  c6 {[%clk 0:02:57]} 4. d4 {[%clk 0:02:59]}  Bg4 {[%clk 0:02:56]} 5. Be2 {[%clk 0:02:51]}  e6 {[%clk 0:02:56]} 6. O-O {[%clk 0:02:51]}  d5 {[%clk 0:02:56]} 7. e5 {[%clk 0:02:49]}  Nfd7 {[%clk 0:02:56]} 8. Ng5 {[%clk 0:02:42]}  Bxe2 {[%clk 0:02:55]} 9. Qxe2 {[%clk 0:02:43]}  h6 {[%clk 0:02:20]} 10. Nxe6 {[%clk 0:02:40]}  fxe6 {[%clk 0:02:16]} 11. Qh5+ {[%clk 0:02:41]}  Ke7 {[%clk 0:02:16]} 12. Bg5+ {[%clk 0:02:38]}  hxg5 {[%clk 0:02:16]} 13. Qxh8 {[%clk 0:02:38]}  Qe8 {[%clk 0:02:12]} 14. f4 {[%clk 0:02:36]}  Na6 {[%clk 0:01:39]} 15. fxg5 {[%clk 0:02:29]}  Qg6 {[%clk 0:01:39]} 16. Qh4 {[%clk 0:02:27]}  Re8 {[%clk 0:01:31]} 17. Ne2 {[%clk 0:02:25]}  Qxc2 {[%clk 0:01:24]} 18. g6+ {[%clk 0:02:23]} 1-0

[Event "December 12 Early 2023"]
[Site "https://www.chess.com"]
[Date "2023.12.12"]
[Round "6"]
[White "Dubnevych, Maksym"]
[Black "Aaditya Dhingra"]
[Result "0-1"]
[Board "65"]
[TimeControl "180+1"]
[WhiteFideId "14184001"]
[BlackFideId "25678191"]
[WhiteElo "2523"]
[BlackElo "2685"]
[WhiteTeam "UKR"]
[BlackTeam "IND"]
[WhiteClock "0:00:00"]
[BlackClock "0:01:35"]

1. d4 {[%clk 0:02:53]}  g6 {[%clk 0:02:59]} 2. e4 {[%clk 0:02:51]}  Bg7 {[%clk 0:03:00]} 3. Nc3 {[%clk 0:02:51]}  c6 {[%clk 0:03:00]} 4. e5 {[%clk 0:02:47]}  d6 {[%clk 0:03:00]} 5. f4 {[%clk 0:02:47]}  h5 {[%clk 0:02:59]} 6. Be3 {[%clk 0:02:44]}  Nh6 {[%clk 0:02:59]} 7. Nf3 {[%clk 0:02:39]}  Bg4 {[%clk 0:02:59]} 8. h3 {[%clk 0:02:32]}  Nf5 {[%clk 0:02:58]} 9. Bf2 {[%clk 0:02:29]}  Bxf3 {[%clk 0:02:57]} 10. Qxf3 {[%clk 0:02:30]}  h4 {[%clk 0:02:44]} 11. O-O-O {[%clk 0:02:21]}  d5 {[%clk 0:02:44]} 12. Bd3 {[%clk 0:01:53]}  e6 {[%clk 0:02:44]} 13. Bxf5 {[%clk 0:01:31]}  gxf5 {[%clk 0:02:45]} 14. g4 {[%clk 0:01:31]}  hxg3 {[%clk 0:02:44]} 15. Qxg3 {[%clk 0:01:31]}  Bh6 {[%clk 0:02:41]} 16. Ne2 {[%clk 0:01:28]}  Nd7 {[%clk 0:02:40]} 17. Rhg1 {[%clk 0:01:12]}  Qa5 {[%clk 0:02:38]} 18. Kb1 {[%clk 0:01:11]}  O-O-O {[%clk 0:02:37]} 19. Qb3 {[%clk 0:00:54]}  Rdg8 {[%clk 0:02:30]} 20. Qf3 {[%clk 0:00:41]}  Nf8 {[%clk 0:02:25]} 21. Bh4 {[%clk 0:00:40]}  Ng6 {[%clk 0:02:23]} 22. Bf6 {[%clk 0:00:36]}  Bg7 {[%clk 0:02:23]} 23. Bg5 {[%clk 0:00:31]}  Rh7 {[%clk 0:02:18]} 24. Rg3 {[%clk 0:00:25]}  Bf8 {[%clk 0:02:17]} 25. h4 {[%clk 0:00:21]}  Rgh8 {[%clk 0:02:11]} 26. Bf6 {[%clk 0:00:21]}  Bg7 {[%clk 0:02:07]} 27. Bxg7 {[%clk 0:00:20]}  Rxg7 {[%clk 0:02:07]} 28. h5 {[%clk 0:00:18]}  Nh4 {[%clk 0:02:07]} 29. Qf2 {[%clk 0:00:18]}  Rgh7 {[%clk 0:02:05]} 30. Rg5 {[%clk 0:00:17]}  Rxh5 {[%clk 0:02:02]} 31. Rxh5 {[%clk 0:00:17]}  Rxh5 {[%clk 0:02:03]} 32. Qg3 {[%clk 0:00:17]}  Ng6 {[%clk 0:02:02]} 33. Qf3 {[%clk 0:00:13]}  Rh8 {[%clk 0:01:59]} 34. Qg3 {[%clk 0:00:13]}  Qb5 {[%clk 0:01:55]} 35. Qg2 {[%clk 0:00:09]}  Qb4 {[%clk 0:01:51]} 36. c3 {[%clk 0:00:08]}  Qf8 {[%clk 0:01:50]} 37. Rh1 {[%clk 0:00:08]}  Rh6 {[%clk 0:01:48]} 38. Rh3 {[%clk 0:00:06]}  Qh8 {[%clk 0:01:47]} 39. Rxh6 {[%clk 0:00:04]}  Qxh6 {[%clk 0:01:48]} 40. Qg3 {[%clk 0:00:05]}  Qh5 {[%clk 0:01:48]} 41. Nc1 {[%clk 0:00:03]}  Qd1 {[%clk 0:01:44]} 42. Qh2 {[%clk 0:00:02]}  Qe1 {[%clk 0:01:38]} 43. Qh7 {[%clk 0:00:02]}  Qe4+ {[%clk 0:01:36]} 44. Ka1 {[%clk 0:00:02]}  Qxf4 {[%clk 0:01:36]} 45. Kb1 {[%clk 0:00:02]}  Qe4+ {[%clk 0:01:34]} 46. Ka1 {[%clk 0:00:02]}  Kd7 {[%clk 0:01:35]} 47. Qxf7+ {[%clk 0:00:00]}  Ne7 {[%clk 0:01:35]} 0-1

[Event "December 12 Early 2023"]
[Site "https://www.chess.com"]
[Date "2023.12.12"]
[Round "6"]
[White "KacperKacprzak"]
[Black "Tikhonov, Viacheslav"]
[Result "0-1"]
[Board "66"]
[TimeControl "180+1"]
[BlackFideId "44196407"]
[WhiteElo "2682"]
[BlackElo "2522"]
[BlackTeam "RUS"]
[WhiteClock "0:00:27"]
[BlackClock "0:00:11"]

1. Nf3 {[%clk 0:03:00]}  g6 {[%clk 0:02:59]} 2. e4 {[%clk 0:02:59]}  c5 {[%clk 0:02:59]} 3. d4 {[%clk 0:02:58]}  cxd4 {[%clk 0:03:00]} 4. Nxd4 {[%clk 0:02:57]}  Nc6 {[%clk 0:03:00]} 5. c4 {[%clk 0:02:56]}  Nf6 {[%clk 0:03:00]} 6. Nc3 {[%clk 0:02:56]}  Nxd4 {[%clk 0:03:01]} 7. Qxd4 {[%clk 0:02:56]}  d6 {[%clk 0:03:02]} 8. Be2 {[%clk 0:02:54]}  Bg7 {[%clk 0:03:02]} 9. Be3 {[%clk 0:02:54]}  O-O {[%clk 0:03:02]} 10. Qd2 {[%clk 0:02:55]}  Be6 {[%clk 0:03:02]} 11. Rc1 {[%clk 0:02:48]}  Qa5 {[%clk 0:03:01]} 12. f3 {[%clk 0:02:48]}  Rfc8 {[%clk 0:03:01]} 13. b3 {[%clk 0:02:48]}  a6 {[%clk 0:03:02]} 14. Na4 {[%clk 0:02:48]}  Qxd2+ {[%clk 0:03:01]} 15. Kxd2 {[%clk 0:02:49]}  Nd7 {[%clk 0:03:02]} 16. g4 {[%clk 0:02:50]}  Rcb8 {[%clk 0:02:54]} 17. Nb6 {[%clk 0:02:24]}  Nxb6 {[%clk 0:02:47]} 18. Bxb6 {[%clk 0:02:25]}  a5 {[%clk 0:02:48]} 19. a4 {[%clk 0:02:24]}  Bh6+ {[%clk 0:02:48]} 20. Be3 {[%clk 0:02:23]}  Bxe3+ {[%clk 0:02:48]} 21. Kxe3 {[%clk 0:02:24]}  b6 {[%clk 0:02:47]} 22. h4 {[%clk 0:02:24]}  Kg7 {[%clk 0:02:43]} 23. f4 {[%clk 0:02:24]}  Bd7 {[%clk 0:02:43]} 24. f5 {[%clk 0:02:21]}  Rc8 {[%clk 0:02:42]} 25. Rcd1 {[%clk 0:02:19]}  Rc5 {[%clk 0:02:41]} 26. Kf4 {[%clk 0:02:16]}  h6 {[%clk 0:02:32]} 27. Bd3 {[%clk 0:02:12]}  Re5 {[%clk 0:02:18]} 28. g5 {[%clk 0:02:10]}  hxg5+ {[%clk 0:01:51]} 29. hxg5 {[%clk 0:02:09]}  Rh8 {[%clk 0:01:51]} 30. Rxh8 {[%clk 0:01:37]}  Kxh8 {[%clk 0:01:52]} 31. Bc2 {[%clk 0:01:35]}  Kg7 {[%clk 0:01:14]} 32. f6+ {[%clk 0:01:30]}  Kf8 {[%clk 0:00:51]} 33. fxe7+ {[%clk 0:01:28]}  Kxe7 {[%clk 0:00:52]} 34. Rh1 {[%clk 0:01:28]}  Rc5 {[%clk 0:00:47]} 35. Rh7 {[%clk 0:01:24]}  Ke6 {[%clk 0:00:37]} 36. Bd1 {[%clk 0:01:21]}  Ke7 {[%clk 0:00:33]} 37. Bf3 {[%clk 0:01:17]}  Rc8 {[%clk 0:00:30]} 38. e5 {[%clk 0:01:15]}  dxe5+ {[%clk 0:00:26]} 39. Kxe5 {[%clk 0:01:16]}  Rc5+ {[%clk 0:00:27]} 40. Bd5 {[%clk 0:01:06]}  Be6 {[%clk 0:00:27]} 41. Rh8 {[%clk 0:01:03]}  Rc8 {[%clk 0:00:24]} 42. Rxc8 {[%clk 0:00:34]}  Bxc8 {[%clk 0:00:24]} 43. Bxf7 {[%clk 0:00:31]}  Kxf7 {[%clk 0:00:22]} 44. Kd6 {[%clk 0:00:32]}  Bf5 {[%clk 0:00:19]} 45. Kc7 {[%clk 0:00:31]}  Bc2 {[%clk 0:00:17]} 46. Kxb6 {[%clk 0:00:30]}  Bxb3 {[%clk 0:00:17]} 47. c5 {[%clk 0:00:29]}  Bxa4 {[%clk 0:00:16]} 48. Kxa5 {[%clk 0:00:30]}  Bd7 {[%clk 0:00:11]} 49. Kb6 {[%clk 0:00:31]}  Ke6 {[%clk 0:00:11]} 50. Kc7 {[%clk 0:00:30]}  Ba4 {[%clk 0:00:11]} 51. Kd8 {[%clk 0:00:27]}  Kf5 {[%clk 0:00:11]} 0-1

[Event "December 12 Early 2023"]
[Site "https://www.chess.com"]
[Date "2023.12.12"]
[Round "6"]
[White "Nagare Kaivalya Sandip"]
[Black "Manukyan, Artyom"]
[Result "1-0"]
[Board "67"]
[TimeControl "180+1"]
[WhiteFideId "25957929"]
[BlackFideId "13305786"]
[WhiteElo "2677"]
[BlackElo "2521"]
[WhiteTeam "IND"]
[BlackTeam "ARM"]
[WhiteClock "0:01:13"]
[BlackClock "0:00:04"]

1. e4 {[%clk 0:03:00]}  e5 {[%clk 0:02:58]} 2. Nf3 {[%clk 0:03:01]}  Nc6 {[%clk 0:02:57]} 3. Bb5 {[%clk 0:03:01]}  a6 {[%clk 0:02:57]} 4. Ba4 {[%clk 0:03:01]}  Nf6 {[%clk 0:02:57]} 5. O-O {[%clk 0:03:02]}  d6 {[%clk 0:02:58]} 6. Re1 {[%clk 0:03:01]}  Bd7 {[%clk 0:02:57]} 7. c3 {[%clk 0:03:02]}  g6 {[%clk 0:02:56]} 8. d4 {[%clk 0:03:02]}  Bg7 {[%clk 0:02:57]} 9. dxe5 {[%clk 0:03:01]}  Nxe5 {[%clk 0:02:55]} 10. Nxe5 {[%clk 0:03:01]}  dxe5 {[%clk 0:02:56]} 11. Bg5 {[%clk 0:02:59]}  Bxa4 {[%clk 0:02:53]} 12. Qxa4+ {[%clk 0:03:00]}  b5 {[%clk 0:02:53]} 13. Qb3 {[%clk 0:02:59]}  O-O {[%clk 0:02:53]} 14. Na3 {[%clk 0:02:58]}  Qe7 {[%clk 0:02:53]} 15. Nc2 {[%clk 0:02:59]}  h6 {[%clk 0:02:53]} 16. Bh4 {[%clk 0:02:57]}  g5 {[%clk 0:02:52]} 17. Bg3 {[%clk 0:02:58]}  h5 {[%clk 0:02:36]} 18. h4 {[%clk 0:02:56]}  Ng4 {[%clk 0:02:30]} 19. hxg5 {[%clk 0:02:39]}  Qxg5 {[%clk 0:02:31]} 20. Ne3 {[%clk 0:02:39]}  h4 {[%clk 0:02:28]} 21. Bh2 {[%clk 0:02:38]}  Rad8 {[%clk 0:01:58]} 22. Nxg4 {[%clk 0:02:25]}  Qxg4 {[%clk 0:01:58]} 23. Rad1 {[%clk 0:02:26]}  c5 {[%clk 0:01:51]} 24. Rd5 {[%clk 0:02:14]}  c4 {[%clk 0:01:47]} 25. Qd1 {[%clk 0:02:14]}  Qg5 {[%clk 0:01:42]} 26. f4 {[%clk 0:02:10]}  Qe7 {[%clk 0:01:34]} 27. fxe5 {[%clk 0:02:10]}  Rfe8 {[%clk 0:00:53]} 28. Qh5 {[%clk 0:02:08]}  Rxd5 {[%clk 0:00:50]} 29. exd5 {[%clk 0:02:09]}  Qc5+ {[%clk 0:00:50]} 30. Kh1 {[%clk 0:02:08]}  Qxd5 {[%clk 0:00:51]} 31. Qxh4 {[%clk 0:02:08]}  Qd2 {[%clk 0:00:47]} 32. Bf4 {[%clk 0:02:03]}  Qxb2 {[%clk 0:00:44]} 33. Re3 {[%clk 0:02:04]}  Re6 {[%clk 0:00:43]} 34. Qd8+ {[%clk 0:02:00]}  Bf8 {[%clk 0:00:37]} 35. Rg3+ {[%clk 0:02:00]}  Rg6 {[%clk 0:00:35]} 36. Bh6 {[%clk 0:01:51]}  Rxg3 {[%clk 0:00:19]} 37. Qxf8+ {[%clk 0:01:49]}  Kh7 {[%clk 0:00:19]} 38. Qxf7+ {[%clk 0:01:50]}  Kxh6 {[%clk 0:00:17]} 39. Qf6+ {[%clk 0:01:50]}  Rg6 {[%clk 0:00:16]} 40. Qh4+ {[%clk 0:01:47]}  Kg7 {[%clk 0:00:16]} 41. Qe7+ {[%clk 0:01:48]}  Kg8 {[%clk 0:00:16]} 42. Qe8+ {[%clk 0:01:48]}  Kh7 {[%clk 0:00:16]} 43. Qf7+ {[%clk 0:01:47]}  Kh6 {[%clk 0:00:14]} 44. Qf8+ {[%clk 0:01:28]}  Kg5 {[%clk 0:00:11]} 45. Qe7+ {[%clk 0:01:26]}  Kg4 {[%clk 0:00:09]} 46. Qd7+ {[%clk 0:01:23]}  Kg3 {[%clk 0:00:02]} 47. Qh3+ {[%clk 0:01:22]}  Kf2 {[%clk 0:00:02]} 48. Qf5+ {[%clk 0:01:21]}  Kg3 {[%clk 0:00:02]} 49. Qxg6+ {[%clk 0:01:21]}  Kf2 {[%clk 0:00:03]} 50. Qf5+ {[%clk 0:01:21]}  Kg3 {[%clk 0:00:04]} 51. Qg5+ {[%clk 0:01:19]}  Kf2 {[%clk 0:00:03]} 52. Qf4+ {[%clk 0:01:20]}  Ke2 {[%clk 0:00:04]} 53. e6 {[%clk 0:01:13]}  Qb1+ {[%clk 0:00:04]} 54. Kh2 {[%clk 0:01:12]}  Qh7+ {[%clk 0:00:05]} 55. Kg3 {[%clk 0:01:13]}  Qg6+ {[%clk 0:00:04]} 56. Qg4+ {[%clk 0:01:13]} 1-0

[Event "December 12 Early 2023"]
[Site "https://www.chess.com"]
[Date "2023.12.12"]
[Round "6"]
[White "Womacka, Mathias"]
[Black "Timerkhanov, Alexander"]
[Result "1-0"]
[Board "68"]
[TimeControl "180+1"]
[WhiteFideId "4611390"]
[BlackFideId "24177938"]
[WhiteElo "2519"]
[BlackElo "2672"]
[WhiteTeam "GER"]
[BlackTeam "RUS"]
[WhiteClock "0:00:08"]
[BlackClock "0:00:00"]

1. e4 {[%clk 0:03:00]}  c6 {[%clk 0:02:59]} 2. d4 {[%clk 0:02:59]}  d5 {[%clk 0:03:00]} 3. Nd2 {[%clk 0:02:59]}  dxe4 {[%clk 0:02:59]} 4. Nxe4 {[%clk 0:03:00]}  Nf6 {[%clk 0:03:00]} 5. Nxf6+ {[%clk 0:03:00]}  exf6 {[%clk 0:03:01]} 6. Bc4 {[%clk 0:02:59]}  Bd6 {[%clk 0:02:59]} 7. Qe2+ {[%clk 0:02:58]}  Qe7 {[%clk 0:02:59]} 8. Qxe7+ {[%clk 0:02:58]}  Kxe7 {[%clk 0:03:00]} 9. Ne2 {[%clk 0:02:57]}  Rd8 {[%clk 0:02:59]} 10. c3 {[%clk 0:02:50]}  Kf8 {[%clk 0:02:58]} 11. Bf4 {[%clk 0:02:49]}  Bxf4 {[%clk 0:02:55]} 12. Nxf4 {[%clk 0:02:48]}  Bf5 {[%clk 0:02:54]} 13. O-O-O {[%clk 0:02:43]}  Nd7 {[%clk 0:02:54]} 14. Rhe1 {[%clk 0:02:42]}  Nb6 {[%clk 0:02:53]} 15. Bd3 {[%clk 0:02:41]}  Bxd3 {[%clk 0:02:53]} 16. Rxd3 {[%clk 0:02:37]}  Nd5 {[%clk 0:02:52]} 17. Nxd5 {[%clk 0:02:35]}  Rxd5 {[%clk 0:02:53]} 18. Rde3 {[%clk 0:02:34]}  Rad8 {[%clk 0:02:48]} 19. Re7 {[%clk 0:02:30]}  R5d7 {[%clk 0:02:46]} 20. Rxd7 {[%clk 0:02:29]}  Rxd7 {[%clk 0:02:47]} 21. Kc2 {[%clk 0:02:29]}  h5 {[%clk 0:02:43]} 22. h4 {[%clk 0:02:27]}  g5 {[%clk 0:02:40]} 23. Re4 {[%clk 0:02:20]}  Rd5 {[%clk 0:02:37]} 24. a4 {[%clk 0:02:14]}  Rf5 {[%clk 0:02:37]} 25. f3 {[%clk 0:02:13]}  a5 {[%clk 0:02:36]} 26. Kd3 {[%clk 0:02:07]}  Rd5 {[%clk 0:02:26]} 27. c4 {[%clk 0:02:02]}  Rf5 {[%clk 0:02:25]} 28. Ke2 {[%clk 0:01:49]}  gxh4 {[%clk 0:02:11]} 29. Rxh4 {[%clk 0:01:48]}  Rg5 {[%clk 0:02:12]} 30. Kf2 {[%clk 0:01:45]}  Ke7 {[%clk 0:02:10]} 31. Re4+ {[%clk 0:01:42]}  Kd7 {[%clk 0:02:10]} 32. Re3 {[%clk 0:01:36]}  b5 {[%clk 0:01:47]} 33. b3 {[%clk 0:01:09]}  b4 {[%clk 0:01:36]} 34. Re4 {[%clk 0:01:07]}  Rg8 {[%clk 0:01:30]} 35. Rh4 {[%clk 0:01:03]}  Rg5 {[%clk 0:01:30]} 36. g3 {[%clk 0:00:55]}  c5 {[%clk 0:01:02]} 37. f4 {[%clk 0:00:48]}  Rg8 {[%clk 0:00:55]} 38. dxc5 {[%clk 0:00:44]}  Kc6 {[%clk 0:00:41]} 39. Rxh5 {[%clk 0:00:44]}  Rd8 {[%clk 0:00:42]} 40. Ke3 {[%clk 0:00:41]}  Rd1 {[%clk 0:00:40]} 41. Rf5 {[%clk 0:00:38]}  Rb1 {[%clk 0:00:40]} 42. Rxf6+ {[%clk 0:00:33]}  Kxc5 {[%clk 0:00:41]} 43. Rf5+ {[%clk 0:00:32]}  Kb6 {[%clk 0:00:39]} 44. c5+ {[%clk 0:00:28]}  Kc6 {[%clk 0:00:39]} 45. Kd3 {[%clk 0:00:29]}  Rxb3+ {[%clk 0:00:38]} 46. Kc4 {[%clk 0:00:28]}  Rc3+ {[%clk 0:00:38]} 47. Kd4 {[%clk 0:00:28]}  Rc1 {[%clk 0:00:38]} 48. Rf6+ {[%clk 0:00:27]}  Kc7 {[%clk 0:00:37]} 49. Rxf7+ {[%clk 0:00:26]}  Kc6 {[%clk 0:00:37]} 50. Rf6+ {[%clk 0:00:25]}  Kc7 {[%clk 0:00:38]} 51. Ra6 {[%clk 0:00:20]}  Rd1+ {[%clk 0:00:30]} 52. Ke5 {[%clk 0:00:18]}  Re1+ {[%clk 0:00:25]} 53. Kf5 {[%clk 0:00:18]}  b3 {[%clk 0:00:20]} 54. Rb6 {[%clk 0:00:17]}  Re3 {[%clk 0:00:18]} 55. g4 {[%clk 0:00:16]}  Rc3 {[%clk 0:00:18]} 56. Ke4 {[%clk 0:00:15]}  Rc4+ {[%clk 0:00:18]} 57. Ke3 {[%clk 0:00:15]}  Rc3+ {[%clk 0:00:07]} 58. Kd4 {[%clk 0:00:14]}  Rf3 {[%clk 0:00:07]} 59. Ke4 {[%clk 0:00:14]}  Rc3 {[%clk 0:00:07]} 60. g5 {[%clk 0:00:13]}  Rc4+ {[%clk 0:00:05]} 61. Ke3 {[%clk 0:00:13]}  Rxa4 {[%clk 0:00:03]} 62. Rxb3 {[%clk 0:00:12]}  Rc4 {[%clk 0:00:03]} 63. Rb5 {[%clk 0:00:09]}  Rc1 {[%clk 0:00:00]} 64. Rxa5 {[%clk 0:00:08]} 1-0